bitfinex-derivatives/quotes_ETHF0:USTF0_20250116
["timestamp","ask_amount","ask_price","bid_price","bid_amount"]
[1737048844165,1.4408,3348.8,3348.4,42.031]
[1737048844166,3.2078,3348.6,3348.4,42.031]
[1737048844467,3.2078,3348.6,3348.0,3.2078]
[1737048844658,0.59743,3348.2,3348.1,0.59743]
[1737048844857,2.9358,3348.5,3347.9,1.231]
[1737048845165,0.59746,3348.0,3347.9,1.231]
[1737048845760,3.2078,3348.2,3347.9,1.231]
[1737048845962,3.2078,3348.2,3348.1,0.59744]
[1737048846266,2.9358,3348.5,3348.4,0.59739]
[1737048846267,5.05330948,3348.5,3348.4,0.59739]
[1737048846566,3.52330948,3348.5,3348.4,0.59739]
[1737048847566,3.2078,3348.8,3348.3,2.26407208]
[1737048847771,3.2078,3348.8,3348.4,1.4647]
[1737048847962,0.59736,3348.6,3348.5,0.59736]
[1737048848466,3.2078,3348.8,3348.7,0.59733]
[1737048848862,1.4568,3349.2,3348.7,1.231]
[1737048848863,3.52330948,3349.2,3348.7,1.231]
[1737048849172,4.12054948,3349.2,3349.1,0.59726]
[1737048849569,3.52330948,3349.2,3349.1,0.59726]
[1737048850267,3.53321,3349.4,3349.3,0.59722]
[1737048850456,3.53321,3349.4,3349.2,0.59723]
[1737048850457,0.59724,3349.3,3349.2,0.59723]
[1737048850665,2.936,3349.4,3349.0,1.4529]
[1737048850862,0.59726,3349.1,3349.0,2.05017]
[1737048851066,0.59724,3349.2,3349.1,0.59725]
[1737048851271,3.2078,3349.3,3349.2,0.59724]
[1737048852069,3.52330948,3349.9,3349.2,2.26407208]
[1737048852371,3.52330948,3349.9,3349.8,2.86121208]
[1737048852859,3.52330948,3349.9,3349.8,2.8441]
[1737048853172,3.2078,3350.2,3349.8,2.8441]
[1737048853173,3.2078,3350.2,3349.8,40.8]
[1737048853372,2.9743,3350.0,3349.9,2.86119208]
[1737048853670,3.2078,3350.2,3350.0,0.59708]
[1737048853964,3.80487,3350.2,3350.0,0.5971]
[1737048854362,3.80487,3350.2,3349.6,2.26407208]
[1737048854564,0.59708,3350.1,3349.8,0.59713]
[1737048854875,3.80487,3350.2,3350.0,0.5971]
[1737048855170,3.2078,3350.2,3350.1,0.59708]
[1737048855473,3.2078,3350.2,3350.1,42.62808]
[1737048856069,4.4982,3350.6,3350.5,0.59701]
[1737048856365,3.2078,3350.7,3350.6,0.59699]
[1737048856966,3.2078,3350.7,3350.2,2.26407208]
[1737048857166,0.597,3350.6,3350.5,0.597]
[1737048857368,3.2078,3350.7,3350.2,2.26407208]
[1737048857571,2.8857,3350.6,3350.4,0.59703]
[1737048857872,0.59701,3350.5,3350.4,0.59703]
[1737048858374,3.4827,3350.6,3350.5,0.59701]
[1737048858666,2.8857,3350.6,3350.5,0.59701]
[1737048859174,3.2078,3350.7,3350.6,0.59699]
[1737048859475,0.59696,3350.8,3350.2,2.26407208]
[1737048859773,1.5065,3351.0,3350.7,0.59698]
[1737048860073,0.59696,3350.8,3350.7,0.59696]
[1737048860271,0.59695,3350.9,3350.7,0.59696]
[1737048860476,2.10343,3351.0,3350.8,0.59694]
[1737048860669,3.2078,3351.1,3351.0,0.59692]
[1737048861168,2.10335,3351.4,3351.3,0.59687]
[1737048861477,1.5065,3351.4,3351.3,0.59687]
[1737048861871,2.10335,3351.4,3351.3,0.59687]
[1737048862074,2.10336,3351.4,3351.3,0.59687]
[1737048862374,2.10336,3351.4,3350.9,2.756]
[1737048862375,1.5065,3351.4,3350.9,2.756]
[1737048862668,1.5065,3351.4,3351.0,0.59692]
[1737048862669,3.2078,3351.1,3351.0,0.59692]
[1737048862866,1.5065,3351.4,3351.3,0.59687]
[1737048863669,3.2078,3351.5,3351.3,0.59687]
[1737048863874,3.2078,3351.5,3351.4,0.59685]
[1737048864376,3.2078,3351.5,3351.4,2.86092208]
[1737048865277,2.08535,3352.0,3351.9,0.59676]
[1737048865574,1.4886,3352.0,3351.7,1.23]
[1737048865780,3.80458,3351.8,3351.7,1.23]
[1737048869673,0.59687,3351.4,3351.3,1.82685]
[1737048870375,3.2078,3351.8,3351.3,1.23]
[1737048870576,0.59681,3351.7,3351.6,0.5968]
[1737048870773,3.2078,3351.8,3351.7,0.5968]
[1737048871075,0.59677,3352.0,3351.9,0.59676]
[1737048872079,3.2078,3352.2,3351.8,2.9718]
[1737048872275,0.59674,3352.1,3352.0,0.59673]
[1737048873077,3.80452,3352.2,3352.1,0.59673]
[1737048873273,3.80452,3352.2,3352.1,1.82673]
[1737048873475,6.1674,3352.7,3352.1,1.23]
[1737048873681,4.6539,3352.7,3352.1,1.23]
[1737048874176,0.59667,3352.5,3352.4,0.59665]
[1737048874678,0.59667,3352.5,3352.4,42.91905]
[1737048875876,0.59673,3352.2,3352.1,0.59671]
[1737048876076,0.59671,3352.2,3352.1,1.84871]
[1737048876277,1.4618,3352.4,3352.1,1.252]
[1737048876688,0.59667,3352.5,3352.4,0.59666]
[1737048877579,2.10386,3352.5,3352.4,1.252]
[1737048877878,2.10386,3352.5,3352.4,1.84867]
[1737048878082,2.10386,3352.5,3352.4,1.252]
[1737048878483,2.10386,3352.5,3352.4,1.84867]
[1737048878783,2.10386,3352.5,3352.4,1.252]
[1737048879780,1.5072,3352.5,3352.2,1.5212]
[1737048880080,0.59669,3352.3,3352.2,1.5212]
[1737048880284,0.59669,3352.3,3352.2,2.11791]
[1737048881282,0.59669,3352.3,3352.2,1.5212]
[1737048881992,0.59668,3352.5,3352.4,0.59666]
[1737048882386,0.59669,3352.4,3352.3,0.59667]
[1737048883283,1.5143,3352.6,3352.2,1.5212]
[1737048883485,0.59668,3352.5,3352.4,0.59666]
[1737048883985,2.11095,3352.6,3352.5,0.59666]
[1737048884283,1.5143,3352.6,3352.2,1.5212]
[1737048884483,0.59667,3352.5,3352.4,0.59666]
[1737048885295,0.59669,3352.3,3352.2,2.1179]
[1737048886587,3.80449,3352.3,3352.2,1.5212]
[1737048886787,3.80449,3352.3,3352.2,2.11791]
[1737048886993,3.80449,3352.3,3352.0,1.252]
[1737048886994,3.2078,3352.3,3351.9,1.4794]
[1737048887293,0.59674,3352.0,3351.9,1.4794]
[1737048887493,0.59674,3352.0,3351.9,1.252]
[1737048887788,0.59674,3352.0,3351.9,1.84876]
[1737048887992,5.14857208,3352.2,3351.8,40.8]
[1737048888194,0.59678,3351.8,3351.7,1.252]
[1737048888386,0.59683,3351.5,3351.4,0.59685]
[1737048888585,0.59683,3351.5,3351.4,42.64885]
[1737048888789,4.69991,3351.5,3351.2,1.252]
[1737048889096,4.69991,3351.5,3351.2,1.84888]
[1737048889097,0.59687,3351.3,3351.2,1.84888]
[1737048889300,0.59687,3351.3,3351.2,1.252]
[1737048889593,0.59692,3351.0,3350.9,3.32043]
[1737048889795,0.59692,3351.0,3350.9,2.7235]
[1737048889994,0.59692,3351.0,3350.9,44.12044]
[1737048890191,3.2078,3351.1,3351.0,0.59692]
[1737048890794,3.2078,3351.6,3351.0,0.59692]
[1737048891096,0.59684,3351.5,3351.4,0.59683]
[1737048891290,3.2078,3351.6,3351.5,0.59683]
[1737048891487,1.4938,3351.8,3351.3,1.49218]
[1737048891693,4.6687,3352.1,3351.8,0.59676]
[1737048891891,0.59678,3351.9,3351.8,0.59677]
[1737048892494,4.6687,3352.1,3351.7,1.252]
[1737048892892,0.59678,3351.8,3351.7,1.252]
[1737048893399,0.59678,3351.8,3351.7,1.8488]
[1737048893692,0.59676,3352.0,3351.9,0.59674]
[1737048893898,3.75573208,3352.5,3351.7,1.252]
[1737048893899,3.2078,3352.6,3351.7,3.51607208]
[1737048894095,0.59668,3352.4,3352.3,0.59668]
[1737048894395,0.59668,3352.4,3352.3,41.39668]
[1737048894597,3.2078,3352.6,3352.3,40.8]
[1737048894902,0.59667,3352.4,3352.3,41.39668]
[1737048895196,3.2078,3352.6,3352.3,40.8]
[1737048895399,0.59667,3352.5,3352.4,0.59666]
[1737048895793,3.2078,3352.6,3352.2,2.909]
[1737048895997,0.59669,3352.3,3352.2,2.909]
[1737048896396,0.59669,3352.3,3352.2,3.50571]
[1737048896899,0.59668,3352.4,3352.3,0.59667]
[1737048897093,3.2078,3352.6,3352.2,2.909]
[1737048897299,0.59669,3352.4,3352.3,0.59667]
[1737048898501,0.59666,3352.5,3352.4,0.59666]
[1737048899904,0.59669,3352.4,3352.3,0.59668]
[1737048901197,4.69943,3352.6,3352.2,0.5967]
[1737048901496,0.59673,3352.2,3352.1,0.59671]
[1737048901905,0.59669,3352.4,3352.3,0.59668]
[1737048902098,3.2078,3352.6,3352.0,1.252]
[1737048902297,0.59671,3352.3,3352.2,0.59669]
[1737048903002,0.59673,3352.2,3352.1,0.59672]
[1737048903502,0.59675,3352.1,3352.0,0.59673]
[1737048903802,0.59672,3352.2,3352.1,0.5967]
[1737048904306,0.59673,3352.1,3352.0,1.84873]
[1737048904699,0.59673,3352.1,3352.0,1.252]
[1737048904900,0.59676,3351.9,3351.8,44.24557]
[1737048905202,3.2078,3352.2,3351.8,44.8828]
[1737048905403,3.80452,3352.2,3352.1,0.59673]
[1737048905603,0.59676,3352.0,3351.9,0.59674]
[1737048905799,0.59676,3352.0,3351.9,1.234]
[1737048906307,0.59676,3352.0,3351.9,1.83076]
[1737048906610,3.80452,3352.2,3352.1,0.59673]
[1737048907299,3.2078,3352.2,3352.1,0.59673]
[1737048908712,0.5967,3352.3,3352.2,0.59671]
[1737048909008,0.59668,3352.4,3352.3,0.59667]
[1737048909209,1.5259,3352.5,3352.3,0.73951199]
[1737048909503,5.23765,3352.6,3352.5,0.59666]
[1737048909701,3.2078,3352.6,3352.5,1.33617199]
[1737048910301,3.2078,3352.6,3352.5,42.13315319]
[1737048911110,3.80444,3352.6,3352.5,42.13315319]
[1737048911317,3.80444,3352.6,3352.5,43.34564681]
[1737048911505,3.2078,3352.6,3352.5,43.34564681]
[1737048912808,0.5966,3352.9,3352.8,0.59658]
[1737048913108,0.5966,3352.9,3352.8,1.33609199]
[1737048913604,0.5966,3352.9,3352.8,1.80243569]
[1737048913809,0.5966,3352.9,3352.8,1.20585569]
[1737048914210,0.5966,3352.9,3352.8,1.80245569]
[1737048914410,5.0,3352.9,3352.0,6.94290798]
[1737048914615,5.47187208,3352.2,3352.0,6.94290798]
[1737048914810,0.59676,3351.9,3351.8,9.2914926]
[1737048915009,2.86083208,3351.9,3351.8,9.2914926]
[1737048915517,0.59679,3351.8,3351.7,0.59678]
[1737048915713,0.59681,3351.7,3351.6,0.59679]
[1737048916216,0.5968,3351.8,3351.7,0.59678]
[1737048916417,0.5968,3351.8,3351.7,1.83078]
[1737048916604,0.5968,3351.8,3351.7,1.234]
[1737048917510,0.5968,3351.8,3351.7,1.8308]
[1737048917906,0.5968,3351.8,3351.7,1.234]
[1737048917907,7.31783364,3351.8,3351.7,1.234]
[1737048918919,0.59687,3351.3,3351.2,41.39688]
[1737048919218,0.59687,3351.3,3351.2,42.63088]
[1737048919417,0.59687,3351.3,3351.2,42.034]
[1737048919621,6.72103364,3351.8,3351.5,0.59682]
[1737048919813,3.51323364,3351.6,3351.3,2.08905]
[1737048920118,3.51323364,3351.6,3351.5,0.59683]
[1737048921018,4.11005364,3351.6,3351.5,0.59683]
[1737048921415,0.59682,3351.6,3351.5,41.39683]
[1737048921914,0.59682,3351.6,3351.5,0.59683]
[1737048922115,0.59687,3351.4,3351.3,0.59685]
[1737048922417,0.59687,3351.4,3351.3,40.8]
[1737048922815,1.492,3351.7,3351.2,1.83087]
[1737048923011,2.08905,3351.3,3351.0,1.234]
[1737048923210,2.08905,3351.3,3350.7,1.83097]
[1737048923211,0.59696,3350.8,3350.7,1.83097]
[1737048923417,0.59696,3350.8,3350.7,1.234]
[1737048924124,0.59698,3350.7,3350.6,2.11669]
[1737048924521,3.51323364,3351.1,3350.6,1.5197]
[1737048924823,0.59698,3350.7,3350.6,3.35068]
[1737048925322,0.59698,3350.7,3350.6,1.234]
[1737048926008,0.59698,3350.7,3350.6,1.83099]
[1737048926213,3.2078,3351.0,3350.6,1.234]
[1737048926409,0.59698,3350.8,3350.7,0.87415509]
[1737048926609,3.2078,3351.0,3350.9,0.59694]
[1737048926812,3.2078,3351.0,3350.9,0.87413509]
[1737048927219,3.2078,3351.0,3350.9,43.16763509]
[1737048927425,3.80472,3351.0,3350.9,0.27719509]
[1737048928112,3.80472,3351.0,3350.9,0.27723517]
[1737048928313,3.80472,3351.0,3350.9,0.87417517]
[1737048928619,3.2078,3351.0,3350.9,0.87417517]
[1737048928819,3.80472,3351.0,3350.9,0.27723517]
[1737048929310,3.2078,3351.0,3350.2,0.59706]
[1737048929617,3.2078,3351.0,3350.7,0.59696]
[1737048929820,0.59694,3350.9,3350.8,0.27709783]
[1737048930016,3.2078,3351.0,3350.8,0.27709737]
[1737048930223,3.80472,3351.0,3350.9,0.27709737]
[1737048930618,0.59689,3351.2,3350.9,0.87403737]
[1737048930922,0.59689,3351.3,3351.2,0.59687]
[1737048931116,0.59687,3351.3,3351.2,0.27688987]
[1737048931317,0.59687,3351.3,3351.2,0.87377987]
[1737048931526,0.59687,3351.3,3351.2,0.27688987]
[1737048931925,0.59687,3351.3,3351.2,0.27687683]
[1737048932417,0.59687,3351.3,3351.2,0.87376683]
[1737048932724,0.59687,3351.3,3351.2,0.27687683]
[1737048932928,0.59687,3351.3,3351.2,0.87376683]
[1737048933121,0.59687,3351.3,3351.2,0.27687683]
[1737048933625,3.50742984,3351.5,3351.2,0.27687683]
[1737048933825,1.21202984,3351.5,3351.4,2.86092208]
[1737048934131,1.21202984,3351.5,3351.4,3.13779891]
[1737048934421,4.66801963,3351.9,3351.8,0.59678]
[1737048934624,5.26477963,3351.9,3351.8,2.10765683]
[1737048934825,4.66801963,3351.9,3351.8,2.10765683]
[1737048935627,5.83502454,3352.1,3351.8,2.90217683]
[1737048935831,0.59674,3352.1,3352.0,0.59673]
[1737048936022,0.59674,3352.1,3352.0,0.87360683]
[1737048936526,0.59672,3352.2,3352.1,0.59671]
[1737048936714,0.59672,3352.2,3352.1,0.87358683]
[1737048937115,0.59672,3352.2,3352.1,1.70547683]
[1737048937322,0.59672,3352.2,3352.1,0.27687683]
[1737048938927,6.11366678,3352.3,3351.0,1.4923]
[1737048938928,0.59685,3351.4,3351.3,2.07487]
[1737048939117,0.59685,3351.4,3351.3,0.27643155]
[1737048939318,3.80465,3351.4,3351.3,0.27643155]
[1737048940226,0.59683,3351.6,3351.1,2.26407208]
[1737048940425,0.59683,3351.6,3351.5,0.59682]
[1737048940623,0.59683,3351.6,3351.1,3.75631208]
[1737048940624,2.3373947,3351.7,3351.6,0.59682]
[1737048940833,2.3373947,3351.8,3351.7,0.5968]
[1737048941129,2.3373947,3351.8,3351.7,0.87318439]
[1737048941632,2.9341747,3351.8,3351.7,0.87318439]
[1737048942137,0.59677,3351.9,3351.8,0.59678]
[1737048942332,0.59677,3351.9,3351.8,0.87316439]
[1737048943928,3.2078,3352.2,3351.8,0.27638439]
[1737048944130,0.59676,3352.0,3351.9,0.87313439]
[1737048944624,0.59676,3352.0,3351.9,0.27638439]
[1737048945027,0.59673,3352.1,3351.9,0.27686312]
[1737048945232,0.59673,3352.1,3352.0,0.27686312]
[1737048945534,0.59673,3352.1,3352.0,0.87360312]
[1737048946532,2.3373947,3352.3,3352.2,0.59671]
[1737048946728,2.3373947,3352.3,3352.2,0.87357312]
[1737048946932,2.9340647,3352.4,3352.3,0.59669]
[1737048947230,2.9340647,3352.4,3352.3,1.52286312]
[1737048948033,0.59667,3352.4,3352.3,1.52286312]
[1737048948638,0.59667,3352.4,3352.3,0.27686312]
[1737048948838,0.59667,3352.4,3352.3,0.27668325]
[1737048949244,2.9340647,3352.4,3352.3,0.27668325]
[1737048949542,2.9340647,3352.4,3352.3,0.87337325]
[1737048950430,2.3373947,3352.4,3352.3,0.87337325]
[1737048950737,0.59667,3352.5,3352.4,0.59667]
[1737048950939,0.59667,3352.5,3352.4,2.44475325]
[1737048951237,3.80444,3352.6,3352.5,0.59666]
[1737048951440,3.2078,3352.6,3352.5,0.87334325]
[1737048953439,3.2078,3352.6,3352.5,2.31634325]
[1737048954537,3.2078,3352.6,3352.5,2.96552561]
[1737048954538,3.80444,3352.6,3352.5,2.96552561]
[1737048954940,3.80444,3352.6,3352.5,2.96552701]
[1737048955247,3.80444,3352.6,3352.5,3.56218701]
[1737048956243,3.2078,3352.6,3352.5,3.56218701]
[1737048956538,5.3806947,3352.9,3352.8,0.5966]
[1737048956539,2.3373947,3352.9,3352.8,0.5966]
[1737048956740,4.66801963,3353.3,3353.2,0.59653]
[1737048956937,4.66801963,3353.3,3353.2,0.87305701]
[1737048957142,3.97341433,3353.3,3353.2,3.78005247]
[1737048957341,3.46382454,3353.5,3353.4,0.5965]
[1737048957541,1.09292454,3353.5,3353.4,5.32682701]
[1737048958244,7.00202945,3354.0,3353.9,0.59641]
[1737048958441,12.54383927,3354.4,3353.9,3.1828939]
[1737048958442,3.80412,3354.4,3353.9,3.1828939]
[1737048958645,3.2078,3354.4,3354.2,0.59635]
[1737048958841,0.59634,3354.3,3354.2,0.59635]
[1737048959046,0.59634,3354.3,3354.2,1.5208465]
[1737048959539,0.59634,3354.3,3354.2,2.1171965]
[1737048960140,0.59634,3354.3,3354.2,2.11697248]
[1737048960444,0.59634,3354.3,3354.2,1.52062248]
[1737048960642,0.59634,3354.3,3354.2,0.27562248]
[1737048960846,0.59634,3354.3,3353.7,1.4441]
[1737048960847,0.59641,3353.9,3353.8,1.245]
[1737048961049,0.59641,3353.9,3353.8,1.52067576]
[1737048961239,0.59641,3353.9,3353.8,0.27567576]
[1737048961438,3.2078,3354.0,3353.4,1.245]
[1737048961439,0.59648,3353.5,3353.4,1.245]
[1737048961649,0.59648,3353.5,3353.4,1.52070649]
[1737048961853,0.59648,3353.5,3353.4,2.11720649]
[1737048962151,4.5088,3353.9,3353.4,1.52070649]
[1737048962342,0.59645,3353.7,3353.6,0.59645]
[1737048962541,0.59644,3353.7,3353.6,0.27570649]
[1737048962746,0.59644,3353.7,3353.6,0.87216649]
[1737048963149,3.0648,3353.9,3353.8,0.59642]
[1737048963451,1.5404,3353.9,3353.8,0.87209513]
[1737048964249,2.13681,3353.9,3353.8,0.87209513]
[1737048964752,1.5404,3353.9,3353.8,0.87209513]
[1737048964951,2.13681,3353.9,3353.8,0.87209513]
[1737048965141,4.6518,3354.4,3353.8,0.27543518]
[1737048965349,0.59636,3354.2,3354.1,0.59636]
[1737048966355,1.4477,3354.3,3354.2,0.59635]
[1737048966859,2.04404,3354.3,3354.2,0.59635]
[1737048967153,1.4477,3354.3,3354.2,0.59635]
[1737048967554,2.04404,3354.3,3354.2,0.87130737]
[1737048967857,1.4477,3354.3,3354.2,0.87130737]
[1737048968353,1.4477,3354.3,3354.2,0.87118448]
[1737048968650,1.4477,3354.3,3354.2,0.27483617]
[1737048968856,0.5964,3354.0,3353.8,1.84142]
[1737048969050,1.4477,3354.3,3353.9,0.27484189]
[1737048969254,0.59636,3354.2,3354.0,0.87122189]
[1737048969455,2.04405,3354.3,3354.1,0.87118758]
[1737048969656,1.4477,3354.3,3354.2,0.59635]
[1737048969852,3.2078,3354.4,3354.3,0.59634]
[1737048970057,3.2078,3354.4,3353.8,2.73606]
[1737048970058,3.2078,3354.4,3353.8,4.15199546]
[1737048970359,3.2078,3354.4,3353.9,0.27490907]
[1737048970656,0.59635,3354.3,3354.1,0.59636]
[1737048970854,3.2078,3354.4,3354.3,0.59634]
[1737048971050,3.2078,3354.4,3354.3,0.87123702]
[1737048971450,2.9635,3355.0,3354.6,0.59628]
[1737048971451,0.59625,3354.8,3354.6,0.59628]
[1737048971658,0.59625,3354.8,3354.3,0.27489702]
[1737048971659,0.59627,3354.7,3354.5,0.59629]
[1737048971857,3.2078,3354.9,3354.5,0.59629]
[1737048972057,3.2078,3354.9,3354.2,2.25395628]
[1737048972260,3.2078,3354.9,3354.5,2.25395628]
[1737048972453,3.2078,3354.9,3354.8,2.85020628]
[1737048972661,3.2078,3354.9,3354.8,3.1248334]
[1737048972958,8.16903436,3356.2,3355.2,0.59618]
[1737048972959,3.2078,3355.3,3355.2,0.59618]
[1737048973157,3.2078,3355.3,3355.2,0.87077015]
[1737048973458,3.2078,3356.1,3355.2,0.27459015]
[1737048973763,3.2078,3356.1,3356.0,0.59603]
[1737048974056,3.2078,3356.1,3356.0,3.12457643]
[1737048974259,1.5262,3356.4,3356.0,2.52854643]
[1737048974563,13.9797204,3358.0,3356.3,7.71571256]
[1737048974860,13.9797204,3358.0,3356.7,1.48978]
[1737048974861,6.96758574,3357.8,3356.7,1.48978]
[1737048975062,6.96758574,3357.8,3357.7,0.59573]
[1737048975462,10.17538574,3357.8,3357.6,1.245]
[1737048975674,6.96758574,3357.8,3357.7,0.59573]
[1737048975969,3.2078,3358.3,3357.7,0.59573]
[1737048975970,3.8033,3359.1,3357.7,0.59573]
[1737048976172,3.2078,3358.6,3357.8,0.27314532]
[1737048976467,1.4701,3359.9,3358.0,2.89671163]
[1737048976468,4.684,3359.0,3358.0,2.89671163]
[1737048976774,4.684,3359.0,3358.2,0.59563]
[1737048976965,5.27951,3359.0,3358.0,2.89671163]
[1737048977165,4.684,3359.0,3358.0,2.89671163]
[1737048977573,4.684,3359.0,3357.9,42.045]
[1737048977574,4.684,3359.0,3358.6,0.59557]
[1737048977771,4.684,3359.0,3358.9,0.59552]
[1737048977772,3.2078,3359.0,3358.9,0.59552]
[1737048977973,3.2078,3359.6,3359.5,0.5954]
[1737048978170,1.452,3360.3,3359.5,6.10451163]
[1737048978466,1.4619,3360.9,3358.9,1.245]
[1737048978467,4.6697,3360.9,3360.4,0.59525]
[1737048978661,4.6697,3360.9,3360.4,1.245]
[1737048979071,4.6697,3360.9,3360.5,0.59522]
[1737048979264,1.414,3361.5,3360.5,2.89671163]
[1737048979265,3.2078,3361.3,3360.5,2.89671163]
[1737048979974,3.2078,3361.3,3360.6,1.244]
[1737048979975,3.2078,3360.8,3360.6,1.244]
[1737048980171,3.2078,3360.8,3359.7,3.2078]
[1737048980475,1.48774,3361.4,3359.7,4.4518]
[1737048980476,3.2078,3360.2,3359.7,4.4518]
[1737048980775,0.59534,3360.0,3359.3,1.83943]
[1737048981070,3.2078,3360.2,3359.3,1.244]
[1737048981376,3.2078,3360.2,3359.8,0.59535]
[1737048981771,3.2078,3360.2,3359.7,0.59537]
[1737048982074,3.2078,3360.2,3360.0,0.59531]
[1737048982275,3.2078,3360.2,3360.1,1.244]
[1737048982470,3.80309,3360.2,3360.1,1.244]
[1737048982675,3.2078,3360.2,3359.8,1.244]
[1737048983270,3.2078,3360.2,3359.3,3.2078]
[1737048983470,3.2078,3359.8,3359.3,3.2078]
[1737048983675,3.2078,3360.2,3359.4,1.244]
[1737048984075,6.10451163,3359.8,3358.9,3.2078]
[1737048984275,0.59546,3359.3,3359.0,1.244]
[1737048984474,0.59545,3359.3,3359.0,1.244]
[1737048984882,0.5955,3359.0,3358.9,1.243]
[1737048985378,1.5675,3359.3,3358.6,12.522]
[1737048985581,0.5955,3359.1,3358.7,1.243]
[1737048986079,0.59553,3358.9,3358.7,1.243]
[1737048986283,0.59553,3358.9,3358.6,12.522]
[1737048986473,3.2078,3359.0,3358.7,1.243]
[1737048986680,3.2078,3359.0,3358.6,12.522]
[1737048986985,3.80331,3359.0,3358.7,1.243]
[1737048987482,0.59553,3358.9,3358.7,1.243]
[1737048987682,3.2078,3359.0,3358.7,1.243]
[1737048988083,0.59553,3358.9,3358.7,1.243]
[1737048988379,3.2078,3359.0,3358.1,40.8]
[1737048988575,0.59555,3358.7,3358.6,1.243]
[1737048988777,3.2078,3359.0,3358.6,1.243]
[1737048989276,3.80331,3359.0,3358.6,1.83856]
[1737048990085,3.2078,3359.9,3358.8,2.89671163]
[1737048990288,3.2078,3360.3,3359.7,0.59537]
[1737048990481,3.80307,3360.3,3359.8,1.243]
[1737048990681,3.2078,3360.3,3360.0,0.59532]
[1737048991383,3.2078,3360.3,3360.0,41.39532]
[1737048991584,0.59517,3360.9,3360.0,41.39532]
[1737048991786,3.2078,3361.0,3360.0,41.39532]
[1737048992186,3.2078,3360.6,3360.0,42.63832]
[1737048992384,3.2078,3360.6,3360.0,42.043]
[1737048992586,3.2078,3360.8,3360.0,42.043]
[1737048993085,0.59525,3360.5,3360.2,0.59529]
[1737048993287,3.2078,3360.8,3360.1,1.243]
[1737048993589,3.2078,3361.3,3360.3,3.2078]
[1737048993790,6.10451163,3361.3,3360.3,44.0078]
[1737048993987,6.10451163,3360.9,3359.8,3.2078]
[1737048994187,0.59528,3360.3,3360.0,0.59532]
[1737048994489,6.10451163,3360.9,3360.2,0.59529]
[1737048994681,6.10451163,3360.9,3359.9,1.243]
[1737048994879,0.59524,3360.5,3360.2,0.59528]
[1737048995089,6.10451163,3360.9,3360.0,40.8]
[1737048995393,6.10451163,3360.9,3360.1,0.5953]
[1737048995591,0.59527,3360.4,3359.9,1.243]
[1737048995780,6.10451163,3360.9,3359.9,1.243]
[1737048996094,3.0634,3361.4,3359.9,1.27]
[1737048996095,2.89671163,3360.5,3359.9,1.27]
[1737048996292,3.2078,3360.6,3359.9,1.27]
[1737048996485,0.59524,3360.5,3360.3,0.59526]
[1737048996685,0.59524,3360.5,3359.9,1.27]
[1737048996881,0.59528,3360.3,3359.9,1.27]
[1737048997196,2.89671163,3360.9,3359.9,1.27]
[1737048997395,0.59523,3360.6,3359.9,1.27]
[1737048997690,0.59523,3360.6,3360.3,0.59526]
[1737048997893,0.59524,3360.5,3359.9,1.27]
[1737048998091,0.59523,3360.6,3360.3,0.59525]
[1737048998295,3.2078,3361.1,3359.9,1.27]
[1737048998492,0.59524,3360.5,3360.0,0.59532]
[1737048998690,0.59526,3360.4,3360.2,0.59528]
[1737048998887,3.2078,3361.1,3359.9,1.27]
[1737048999092,0.5953,3360.2,3360.0,0.59531]
[1737048999290,3.2078,3360.7,3360.1,1.27]
[1737048999492,0.59529,3360.2,3360.1,1.27]
[1737048999991,3.2078,3360.7,3360.1,1.27]
[1737049000201,0.59529,3360.2,3360.1,1.27]
[1737049000495,0.59527,3360.4,3360.2,0.59529]
[1737049000686,0.59527,3360.4,3359.8,3.2078]
[1737049000687,0.59527,3360.3,3360.0,1.27]
[1737049000890,3.803,3360.7,3360.1,0.27213262]
[1737049001195,3.2078,3361.1,3360.4,3.2078]
[1737049001497,0.59514,3361.1,3360.9,0.59515]
[1737049001692,0.59514,3361.1,3361.0,1.27]
[1737049002291,0.59514,3361.1,3361.0,1.54320526]
[1737049002692,0.59524,3360.5,3360.4,3.2078]
[1737049002993,0.59524,3360.5,3360.4,4.75109252]
[1737049003200,0.59524,3360.5,3360.4,3.48109252]
[1737049003494,0.59524,3360.5,3360.4,0.27329252]
[1737049005294,0.59523,3360.6,3360.4,0.86853252]
[1737049005490,0.59523,3360.6,3360.5,0.86853252]
[1737049005999,0.59523,3360.6,3360.5,0.27329252]
[1737049008102,0.59525,3360.4,3360.3,1.27]
[1737049008305,0.59525,3360.4,3360.3,1.54489714]
[1737049008796,0.59525,3360.4,3360.3,0.27489714]
[1737049008996,0.59525,3360.4,3360.3,1.54489714]
[1737049012000,0.59525,3360.4,3360.3,1.54501946]
[1737049012899,0.59525,3360.4,3360.3,0.27501946]
[1737049014794,0.59519,3360.9,3360.8,0.59518]
[1737049014996,0.59519,3360.9,3360.8,0.27501946]
[1737049016007,5.59519,3360.9,3360.8,9.46e-06]
[1737049016305,0.59519,3360.9,3360.8,9.46e-06]
[1737049017604,4.6825,3361.2,3360.1,1.27]
[1737049017803,0.59529,3360.2,3360.1,1.27]
[1737049018307,0.59529,3360.2,3360.1,1.86531]
[1737049018508,0.59529,3360.3,3360.2,0.59528]
[1737049018902,0.59529,3360.2,3360.1,1.86529]
[1737049019212,0.59529,3360.2,3360.1,1.27]
[1737049019504,0.59531,3360.1,3360.0,4.4778]
[1737049019699,3.4502998,3362.6,3360.2,0.59527]
[1737049019700,0.59528,3360.3,3360.2,0.59527]
[1737049019896,1.48796,3360.8,3360.0,4.4778]